bitfinex/quotes_ETHUSD_20241225
["timestamp","ask_amount","ask_price","bid_price","bid_amount"]
[1735142773498,0.8064,3475.6,3474.6,0.6908]
[1735142773499,2.87761,3475.2,3474.6,0.6908]
[1735142773701,0.55,3475.9,3474.7,0.02877974]
[1735142773900,2.87708,3475.8,3474.8,0.35975997]
[1735142774127,2.87715,3475.7,3474.8,0.35975997]
[1735142774500,2.87715,3475.7,3474.9,0.02877468]
[1735142775029,2.87715,3475.7,3474.9,0.02877469]
[1735142775587,0.8064,3476.6,3475.0,0.6908]
[1735142775788,1.19689823,3476.7,3475.8,2.87702]
[1735142776027,1.19689823,3476.7,3476.0,0.6908]
[1735142776328,1.19689823,3476.7,3476.2,0.6908]
[1735142776495,1.19689823,3476.7,3476.2,0.71956348]
[1735142776688,1.19689823,3476.7,3476.2,0.6908]
[1735142776909,1.19689823,3476.7,3476.3,0.41417772]
[1735142777604,2.87581,3477.3,3476.3,0.41417772]
[1735142780333,2.87589,3477.2,3476.3,0.41417772]
[1735142780544,2.87589,3477.2,3476.2,0.6908]
[1735142782304,2.87597,3477.1,3476.2,0.6908]
[1735142784845,2.87605,3477.0,3476.2,0.6908]
[1735142785030,2.87615,3476.9,3476.2,0.6908]
[1735142787346,2.87621,3476.8,3476.2,1.11729172]
[1735142787522,2.87638,3476.6,3476.2,0.6908]
[1735142787706,2.87646,3476.5,3476.2,0.6908]
[1735142788881,2.87658,3476.4,3476.2,0.6908]
[1735142789036,2.87604,3477.0,3476.2,0.6908]
[1735142789240,2.87622,3476.8,3476.2,0.6908]
[1735142789463,3.0,3477.5,3476.2,0.6908]
[1735142789675,2.87579,3477.3,3476.2,3.5675]
[1735142789881,2.87579,3477.3,3476.2,2.8767]
[1735142790095,0.8276,3477.5,3476.5,0.6908]
[1735142790096,2.87563,3477.5,3476.5,0.6908]
[1735142790253,2.87521,3478.1,3477.0,0.6908]
[1735142790452,2.87521,3478.1,3477.0,3.56682]
[1735142790652,2.87521,3478.1,3477.0,4.15646476]
[1735142791057,2.87523,3478.0,3477.1,0.71955552]
[1735142792142,2.87537,3477.9,3477.1,0.6908]
[1735142793182,2.87505,3478.2,3477.2,0.57621914]
[1735142793490,2.87541,3477.8,3477.2,0.57621914]
[1735142794790,2.87554,3477.6,3477.2,0.57621914]
[1735142794992,2.87515,3478.1,3477.3,0.6908]
[1735142795195,0.55,3478.4,3477.3,0.6908]
[1735142795196,2.87522,3478.0,3477.3,0.6908]
[1735142795502,2.8754,3477.8,3477.3,0.6908]
[1735142795994,2.87548,3477.7,3477.3,0.6908]
[1735142796371,2.87564,3477.5,3477.3,0.6908]
[1735142796567,0.8276,3478.1,3477.0,0.6908]
[1735142796895,2.87606,3477.0,3476.8,0.56426999]
[1735142797196,2.87589,3477.2,3476.8,0.56426999]
[1735142797556,2.87546,3477.7,3476.9,0.6908]
[1735142797758,2.87579,3477.4,3476.9,0.6908]
[1735142797959,2.87546,3477.7,3476.9,0.6908]
[1735142798160,2.87588,3477.2,3476.9,0.6908]
[1735142800972,0.8276,3477.8,3476.2,0.6908]
[1735142800973,0.55,3477.0,3476.2,0.6908]
[1735142801190,2.87646,3476.5,3476.2,0.6908]
[1735142801385,2.8762,3476.8,3476.2,0.6908]
[1735142801703,2.87634,3476.7,3475.4,0.6908]
[1735142802013,0.55,3476.6,3475.8,0.5829196]
[1735142802166,2.87661,3476.4,3475.8,0.5829196]
[1735142802967,0.55,3476.6,3475.8,0.5829196]
[1735142803209,2.87664,3476.3,3475.8,0.5829196]
[1735142804317,2.87672,3476.2,3475.8,0.5829196]
[1735142804910,0.55,3476.6,3475.4,0.6908]
[1735142805115,2.87696,3475.9,3475.4,0.6908]
[1735142805990,2.87651,3476.5,3475.5,0.56650501]
[1735142806191,2.87651,3476.5,3475.6,0.6908]
[1735142806391,0.7781,3477.0,3475.7,2.3583959]
[1735142806596,2.87611,3477.0,3475.9,0.6908]
[1735142806790,0.7781,3477.4,3475.9,0.6908]
[1735142806990,2.87645,3476.5,3475.9,0.6908]
[1735142808413,2.87629,3476.7,3475.9,0.6908]
[1735142808818,2.87629,3476.7,3475.9,1.05047468]
[1735142810112,2.87595,3477.1,3476.0,0.6908]
[1735142810324,2.87594,3477.2,3476.0,0.6908]
[1735142810494,2.87614,3476.9,3476.0,0.6908]
[1735142810903,0.55,3477.1,3476.0,0.6908]
[1735142811298,2.87619,3476.9,3476.0,0.6908]
[1735142812417,0.55,3477.1,3476.0,0.6908]
[1735142812619,2.8759,3477.2,3476.1,0.6908]
[1735142812822,2.8759,3477.2,3476.1,2.87677]
[1735142813011,0.7936,3477.5,3476.2,0.6908]
[1735142813012,2.87597,3477.1,3476.2,0.6908]
[1735142814401,2.87597,3477.1,3476.3,0.356763]
[1735142816493,3.66926,3477.5,3476.3,0.356763]
[1735142816694,2.87594,3477.2,3476.4,0.6908]
[1735142817490,2.87594,3477.2,3476.5,0.59672792]
[1735142817724,2.87594,3477.2,3476.5,0.5679658]
[1735142819864,2.87594,3477.2,3476.6,0.99510135]
[1735142820238,3.42572,3477.4,3476.7,0.6908]
[1735142820553,3.42572,3477.4,3476.8,0.37465192]
[1735142820760,2.87572,3477.4,3476.8,0.37465192]
[1735142821956,0.7988,3477.8,3476.7,0.6908]
[1735142821957,3.42546,3477.7,3476.7,0.6908]
[1735142822735,2.87589,3477.2,3476.9,2.48775338]
[1735142823935,2.87574,3477.4,3476.9,2.48775338]
[1735142824139,1.19689823,3477.9,3477.0,0.71956037]
[1735142824461,1.19689823,3477.9,3477.2,0.6908]
[1735142824647,1.19689823,3477.9,3477.4,0.6908]
[1735142825575,2.87505,3478.2,3477.4,0.6908]
[1735142825997,1.99569823,3478.6,3477.4,0.6908]
[1735142826481,1.99569823,3478.6,3477.1,3.68852225]
[1735142826482,2.87587,3477.2,3477.1,3.68852225]
[1735142826839,2.87587,3477.2,3477.1,3.7868273]
[1735142827456,3.42587,3477.2,3477.1,3.7868273]
[1735142827980,7.25277,3477.2,3477.1,0.9108673]
[1735142828294,4.25277,3477.2,3476.3,0.99641887]
[1735142828580,2.87653,3476.4,3476.3,0.99641887]
[1735142829046,2.87638,3476.6,3476.3,0.99641887]
[1735142829657,2.87638,3476.6,3476.0,0.99641887]
[1735142829882,2.87621,3476.8,3476.0,1.34451758]
[1735142831605,1.19689823,3477.5,3476.3,0.6908]
[1735142831805,2.87581,3477.3,3476.3,0.6908]
[1735142832166,1.19689823,3477.5,3476.6,2.87629]
[1735142832371,1.19689823,3477.5,3476.8,0.6908]
[1735142832567,1.19689823,3477.5,3476.9,0.356709]
[1735142832772,4.07217823,3478.0,3477.0,0.6908]
[1735142832968,1.19689823,3478.0,3477.1,0.6908]
[1735142833282,1.19689823,3478.0,3477.3,2.87578]
[1735142833509,1.19689823,3478.0,3477.4,0.6908]
[1735142833683,1.19689823,3478.0,3477.5,0.356658]
[1735142834181,2.87489,3478.4,3477.5,0.356658]
[1735142834387,2.02679823,3478.7,3477.4,0.6908]
[1735142834594,0.55,3478.6,3477.4,0.6908]
[1735142834816,2.87523,3478.0,3477.4,0.6908]
[1735142835879,0.55,3478.6,3477.4,0.6908]
[1735142836507,2.87522,3478.0,3477.4,0.6908]
[1735142837362,0.55,3478.6,3477.4,0.6908]
[1735142837363,2.87534,3477.9,3477.4,0.6908]
[1735142837500,2.87557,3477.6,3477.2,1.49459903]
[1735142837700,0.55,3477.9,3477.2,1.49459903]
[1735142837961,2.87572,3477.4,3477.2,1.49459903]
[1735142838671,2.87572,3477.4,3477.1,0.6908]
[1735142839018,2.87538,3477.8,3477.1,0.6908]
[1735142839870,0.55,3477.9,3476.8,0.6908]
[1735142840367,2.87571,3477.4,3476.8,0.6908]
[1735142842278,0.8299,3478.0,3476.8,0.6908]
[1735142842436,2.87521,3478.1,3476.9,2.87612]
[1735142842637,2.87521,3478.1,3476.9,3.58933722]
[1735142842936,1.19689823,3478.2,3476.9,3.58933722]
[1735142843117,2.8753,3477.9,3476.9,3.58933722]
[1735142843317,2.87542,3477.8,3476.9,0.71321722]
[1735142843633,2.87542,3477.8,3477.0,2.48529045]
[1735142843881,3.0,3478.4,3477.0,2.48529045]
[1735142844181,2.87579,3477.3,3477.0,2.48529045]
[1735142844680,0.8299,3477.5,3477.0,2.48529045]
[1735142844681,0.55,3477.4,3477.0,2.48529045]
[1735142844880,0.55,3477.4,3476.8,0.6908]
[1735142845460,0.55,3477.6,3476.8,0.6908]
[1735142845661,2.87553,3477.7,3476.8,0.6908]
[1735142845857,0.55,3477.6,3476.8,0.6908]
[1735142846061,0.55,3477.7,3476.8,0.6908]
[1735142847414,0.55,3477.7,3476.9,0.99433537]
[1735142847888,0.55,3478.0,3477.0,0.7195589]
[1735142848188,0.55,3478.0,3477.0,0.6908]
[1735142848411,0.55,3478.0,3477.0,3.5668]
[1735142848766,3.42522,3478.0,3477.0,0.6908]
[1735142850313,3.42522,3478.0,3477.1,0.6908]
[1735142850609,3.42522,3478.0,3477.2,0.53446711]
[1735142852407,3.42522,3478.0,3477.1,0.6908]
[1735142852719,2.8753,3477.9,3477.1,0.6908]
[1735142855154,0.55,3478.0,3477.1,0.71955651]
[1735142855549,3.42521,3478.0,3477.1,0.71955651]
[1735142856533,2.87512,3478.2,3477.1,0.71955651]
[1735142856673,2.87512,3478.2,3477.2,0.70765338]
[1735142856877,2.8749,3478.4,3477.3,3.56657]
[1735142857100,2.87498,3478.3,3477.5,0.6908]
[1735142857332,2.87505,3478.2,3477.5,0.6908]
[1735142857481,2.87516,3478.1,3477.5,0.6908]
[1735142861186,0.55,3478.2,3477.5,0.6908]
[1735142862318,2.87502,3478.3,3477.5,0.6908]
[1735142862824,1.19689823,3478.8,3477.4,0.6908]
[1735142863110,2.87464,3478.7,3477.8,0.6908]
[1735142866975,2.87464,3478.7,3477.9,0.99394459]
[1735142867209,2.87434,3479.1,3478.0,0.02875011]
[1735142867210,2.87443,3479.0,3478.0,0.02875011]
[1735142867415,3.42454,3478.9,3478.0,0.6908]
[1735142867632,0.55,3479.1,3478.0,0.6908]
[1735142867812,0.55,3478.9,3478.0,0.6908]
[1735142868005,2.87438,3479.0,3478.0,0.6908]
[1735142868211,2.87459,3478.8,3478.0,0.6908]
[1735142869137,0.55,3479.1,3478.0,0.6908]
[1735142869439,1.19689823,3479.4,3478.3,0.6908]
[1735142869595,2.87421,3479.3,3478.3,0.6908]
[1735142870436,2.87421,3479.3,3478.4,0.6908]
[1735142870636,1.19689823,3479.4,3478.7,0.6908]
[1735142870937,1.19689823,3479.4,3478.7,0.71954281]
[1735142871136,1.19689823,3479.4,3478.9,0.6908]
[1735142871940,2.87371,3479.9,3478.9,0.6908]
[1735142872845,0.7845,3480.3,3479.0,2.87438]
[1735142873142,2.87347,3480.2,3479.2,0.6908]
[1735142873727,2.8735,3480.1,3479.2,0.6908]
[1735142874103,2.87359,3480.0,3479.2,0.6908]
[1735142876861,2.87373,3479.8,3479.2,0.6908]
[1735142878918,2.87357,3480.0,3479.2,0.6908]
[1735142879734,2.87365,3479.9,3479.2,0.6908]
[1735142879937,2.87365,3479.9,3479.4,0.5757205]
[1735142880560,2.87397,3479.5,3479.4,0.5757205]
[1735142880765,0.8298,3479.6,3478.6,0.6908]
[1735142880924,0.55,3478.8,3478.6,0.6908]
[1735142881270,2.87463,3478.7,3478.5,1.20504172]
[1735142881436,3.42471,3478.6,3478.5,1.20504172]
[1735142882711,0.55,3477.9,3477.7,0.6908]
[1735142882852,3.4253,3477.9,3477.4,1.27296664]
[1735142883051,3.4253,3477.9,3477.4,0.6908]
[1735142883853,0.55,3477.7,3477.4,0.6908]
[1735142885293,3.42551,3477.7,3477.4,0.6908]
[1735142885507,0.55,3477.5,3476.7,0.6908]
[1735142885713,0.55,3477.5,3476.8,0.60204276]
[1735142886777,0.55,3477.4,3476.8,0.60204276]
[1735142887089,0.55,3477.4,3477.0,0.56299503]
[1735142887393,0.55,3477.6,3477.0,0.56299503]
[1735142888281,0.55,3477.8,3477.1,0.6908]
[1735142889194,0.55,3477.9,3477.1,0.6908]
[1735142889493,0.55,3478.1,3477.1,0.6908]
[1735142889695,2.87523,3478.0,3477.1,0.6908]
[1735142889914,0.55,3477.8,3477.1,0.6908]
[1735142890608,3.42539,3477.8,3477.1,0.6908]
[1735142892714,3.42539,3477.8,3477.1,0.87638378]
[1735142893015,0.55,3478.1,3477.1,0.87638378]
[1735142893318,0.55,3477.9,3477.1,0.87638378]
[1735142894377,0.7811,3478.2,3477.3,0.6908]
[1735142894378,0.55,3478.1,3477.3,0.6908]
[1735142894872,3.42491,3478.4,3477.3,0.6908]
[1735142895077,3.42491,3478.4,3477.4,0.6908]
[1735142895398,0.55,3478.4,3477.4,0.6908]
[1735142895578,0.55,3477.8,3477.4,0.6908]
[1735142895775,2.87578,3477.4,3476.8,0.6908]
[1735142896130,0.55,3477.3,3476.8,0.6908]
[1735142896671,2.8759,3477.2,3476.8,0.6908]
[1735142897076,0.55,3477.1,3476.8,0.6908]
[1735142897309,0.55,3477.1,3476.6,1.20504172]
[1735142897514,2.87612,3476.9,3476.6,1.20504172]
[1735142897732,0.55,3476.8,3476.6,1.20504172]
[1735142898131,2.87622,3476.8,3476.4,0.6908]
[1735142898606,2.87631,3476.7,3476.3,0.56548741]
[1735142898814,0.55,3476.6,3476.3,0.56548741]
[1735142899220,0.55,3476.6,3476.2,1.48626207]
[1735142899526,0.55,3476.6,3476.1,0.6908]
[1735142899825,0.55,3476.6,3476.2,0.58531808]
[1735142900051,0.55,3476.8,3476.1,0.6908]
[1735142900230,0.55,3477.0,3476.1,0.6908]
[1735142900430,0.55,3477.0,3476.2,0.356764]
[1735142901374,0.55,3477.0,3476.3,0.6908]
[1735142901495,0.55,3477.2,3476.3,0.6908]
[1735142901857,0.55,3477.1,3476.3,0.6908]
[1735142902412,0.55,3477.1,3476.3,1.14459452]
[1735142902832,0.55,3477.1,3476.3,0.6908]
[1735142903014,0.55,3477.4,3476.3,0.6908]
[1735142903306,0.55,3477.2,3476.3,0.6908]
[1735142903521,0.55,3477.1,3476.3,0.6908]
[1735142904529,0.55,3476.7,3476.3,0.6908]
[1735142904902,2.87647,3476.5,3476.0,0.6908]
[1735142905131,0.55,3476.7,3476.0,0.6908]
[1735142905132,3.42631,3476.7,3476.0,0.6908]
[1735142905896,0.55,3476.5,3476.0,0.6908]
[1735142907246,0.55,3476.5,3475.9,0.58004653]
[1735142907407,0.55,3476.2,3475.9,0.58004653]
[1735142908035,2.87647,3476.5,3475.9,0.58004653]
[1735142908036,0.55,3476.4,3475.9,0.58004653]
[1735142908833,0.55,3476.4,3475.7,0.6908]
[1735142908834,2.87661,3476.4,3475.7,0.6908]
[1735142909053,0.55,3476.3,3475.7,0.6908]
[1735142909361,0.55,3476.5,3475.7,0.6908]
[1735142909495,3.42647,3476.5,3475.7,0.6908]
[1735142910659,0.55,3476.7,3475.8,0.57659079]
[1735142910952,0.8116,3476.4,3475.8,0.57659079]
[1735142911234,0.55,3476.2,3475.8,0.57659079]
[1735142911425,0.55,3476.3,3475.8,0.57659079]
[1735142913541,0.55,3476.3,3475.7,0.6908]
[1735142913760,0.55,3476.3,3475.1,0.6908]
[1735142913761,0.55,3475.9,3475.1,0.6908]
[1735142913967,0.55,3475.9,3475.2,1.01030893]
[1735142915056,0.55,3476.1,3475.2,1.01030893]
[1735142915636,0.55,3476.1,3475.6,0.56663228]
[1735142915823,0.55,3476.1,3475.7,0.6908]
[1735142918467,2.87678,3476.2,3475.6,0.56663228]
[1735142918665,0.55,3476.1,3475.6,0.56663228]
[1735142919368,0.55,3476.0,3475.6,0.56663228]
[1735142920685,0.55,3475.8,3475.6,0.56663228]
[1735142920979,0.55,3476.0,3475.6,0.56663228]
[1735142923072,0.55,3476.3,3475.6,0.56663228]
[1735142923453,2.87685,3476.1,3475.6,0.56663228]
[1735142924010,0.55,3476.0,3475.6,0.56663228]
[1735142924567,2.87714,3475.7,3474.7,1.89584172]
[1735142924770,2.87728,3475.5,3474.9,0.57388618]
[1735142924988,0.55,3475.6,3474.7,1.89584172]
[1735142925171,0.55,3475.2,3474.7,1.89584172]
[1735142926198,0.55,3475.2,3474.7,0.6908]
[1735142926369,0.55,3475.6,3474.7,0.6908]
[1735142926693,0.55,3475.6,3474.7,3.56873]
[1735142926873,0.55,3475.6,3474.8,0.41342046]
[1735142927073,0.7581,3476.2,3474.9,0.6908]
[1735142927384,2.87705,3475.8,3474.9,0.6908]
[1735142928468,0.55,3475.7,3474.9,0.6908]
[1735142928674,3.42711,3475.7,3475.0,0.39820805]
[1735142929489,3.42711,3475.7,3475.2,0.5838541]
[1735142931526,3.42711,3475.7,3475.0,0.39820805]
[1735142931809,3.42711,3475.7,3474.9,0.6908]
[1735142931988,0.55,3475.5,3474.9,0.6908]
[1735142933137,0.55,3475.5,3474.9,2.17835275]
[1735142933812,2.87743,3475.4,3474.9,2.17835275]
[1735142934022,0.55,3475.1,3474.9,1.48755275]
[1735142934210,2.87738,3475.4,3474.9,1.48755275]
[1735142934513,0.55,3475.3,3474.9,1.48755275]
[1735142935540,0.55,3475.3,3474.8,0.99190354]
[1735142936452,2.87711,3475.7,3475.0,0.6908]
[1735142937738,2.87723,3475.6,3475.0,0.6908]
[1735142938037,0.55,3475.4,3474.7,2.48410073]
[1735142938212,0.55,3475.3,3474.7,2.48410073]
[1735142938413,0.55,3475.3,3474.7,3.4525695]
[1735142938637,0.55,3475.3,3474.7,6.3305095]
[1735142939200,0.55,3475.5,3474.7,3.4525695]
[1735142940625,0.55,3475.5,3474.8,2.48345225]
[1735142940824,2.87765,3475.1,3474.8,2.48345225]
[1735142941152,0.55,3474.9,3474.8,2.48345225]
[1735142941803,0.55,3474.9,3474.4,1.20504172]
[1735142942114,0.7918,3476.0,3474.5,0.71958109]
[1735142942439,2.87711,3475.8,3474.9,0.6908]
[1735142943108,0.7918,3476.0,3474.9,0.6908]
[1735142943304,2.8772,3475.6,3474.9,0.6908]
[1735142944006,0.55,3475.5,3474.9,0.6908]
[1735142944209,0.55,3475.5,3475.0,0.99376892]
[1735142945344,0.55,3475.5,3475.0,1.43173712]
[1735142946036,0.55,3475.5,3475.0,1.56499991]
[1735142946841,0.55,3475.5,3475.0,2.06130234]
[1735142947055,3.42761,3475.1,3475.0,1.49007135]
[1735142947208,4.21941,3475.1,3475.0,1.49007135]
[1735142948046,2.87778,3474.9,3474.5,1.20504172]
[1735142948544,3.42786,3474.8,3474.5,1.20504172]
[1735142948843,0.55,3475.0,3474.5,1.20504172]
[1735142949141,4.18322,3474.6,3474.5,1.20504172]
[1735142949522,2.87819,3474.4,3474.3,0.99415627]
[1735142949721,3.42819,3474.4,3474.3,0.99415627]
[1735142951172,0.55,3474.4,3473.6,1.89584172]
[1735142951376,0.55,3474.2,3473.6,1.89584172]
[1735142951576,0.55,3473.9,3473.6,1.20504172]
[1735142951878,0.55,3473.7,3473.6,1.20504172]
[1735142952040,3.42877,3473.7,3473.6,1.20504172]
[1735142952844,3.42877,3473.7,3473.1,1.89584172]
[1735142953164,0.55,3474.0,3473.1,1.89584172]
[1735142953354,2.87893,3473.6,3473.1,1.20504172]
[1735142953688,0.55,3473.3,3473.1,1.20504172]
[1735142953871,0.55,3473.3,3472.9,1.20504172]
[1735142954385,0.55,3473.4,3472.9,1.20504172]
[1735142954675,0.55,3473.4,3472.9,1.78195925]
[1735142955509,0.55,3473.4,3472.9,0.57691753]
[1735142959025,0.55,3473.7,3472.9,0.60571137]
[1735142959348,0.55,3473.7,3472.9,0.57691753]
[1735142959489,0.55,3473.7,3473.0,0.41760188]
[1735142960376,2.87845,3474.1,3473.1,0.6908]
[1735142960880,0.7552,3474.2,3473.1,3.57005]
[1735142961080,3.63332,3474.5,3473.4,0.6908]
[1735142961283,0.7552,3474.8,3473.5,0.02878493]
[1735142961608,2.32962759,3475.3,3473.0,3.41760188]
[1735142961609,2.8777,3475.0,3474.0,0.6908]
[1735142961799,2.8777,3475.0,3474.0,1.10409589]
[1735142962730,0.7552,3475.1,3474.0,0.6908]
[1735142963039,0.55,3475.0,3474.0,0.6908]
[1735142963235,0.55,3474.4,3474.0,0.6908]
[1735142963985,0.55,3474.6,3474.0,0.6908]
[1735142965475,0.55,3474.8,3474.0,0.6908]
[1735142965619,0.55,3474.8,3474.0,1.10698626]
[1735142965947,3.63282,3475.1,3474.0,3.98547626]
[1735142966165,2.87772,3475.0,3474.1,0.6908]
[1735142967073,0.55,3475.0,3474.1,0.6908]
[1735142967452,0.55,3475.2,3474.1,0.6908]
[1735142967856,0.55,3474.7,3474.1,0.6908]
[1735142968036,2.87804,3474.6,3474.1,0.6908]
[1735142968452,0.55,3474.5,3474.1,0.6908]
[1735142974160,0.55,3474.7,3474.1,0.6908]
[1735142974728,2.87801,3474.7,3474.1,0.6908]
[1735142974958,0.55,3474.5,3474.1,0.6908]
[1735142975335,0.55,3474.5,3473.7,0.6908]
[1735142975540,3.42811,3474.5,3473.5,1.7849941]
[1735142975844,3.42885,3473.6,3473.5,1.20504172]
[1735142977434,0.55,3473.2,3472.5,1.20504172]
[1735142978351,0.55,3473.2,3472.8,0.88038417]
[1735142978824,0.55,3473.2,3472.8,0.6908]
[1735142983499,3.69647,3473.1,3472.6,0.5860715]
[1735142983657,2.87952,3472.9,3472.6,0.5860715]
[1735142983975,0.55,3472.3,3472.2,1.20504172]
[1735142984477,0.55,3472.3,3472.0,1.7830414]
[1735142984641,0.55,3472.2,3472.0,1.20504172]
[1735142985576,0.55,3472.4,3472.0,1.20504172]
[1735142985778,0.55,3472.4,3471.7,0.6908]
[1735142987079,3.42985,3472.4,3471.9,0.56647405]
[1735142988121,0.55,3472.4,3471.9,1.25727405]
[1735142991039,3.42986,3472.4,3471.9,0.56647405]
[1735142991810,2.87995,3472.3,3471.9,0.56647405]
[1735142992044,0.55,3472.0,3471.9,0.56647405]
[1735142992266,0.55,3472.0,3471.4,1.89584172]
[1735142992567,0.55,3472.0,3471.4,2.50548459]
[1735142993922,0.55,3472.0,3471.7,0.5911293]
[1735142995155,0.55,3472.2,3471.7,0.5911293]
[1735142996193,0.55,3472.4,3471.7,0.5911293]
[1735142997234,0.55,3472.4,3471.8,0.34716693]
[1735142997571,0.55,3472.7,3471.9,0.6908]
[1735142997955,3.67954,3472.8,3471.7,0.5911293]
[1735142997956,0.55,3472.4,3471.7,0.5911293]
[1735143001510,0.55,3472.7,3471.7,0.5911293]
[1735143001715,0.55,3472.5,3471.7,0.5911293]
[1735143001923,0.55,3472.5,3471.8,0.41624193]
[1735143002558,0.8,3472.8,3471.9,0.6908]
[1735143002758,3.8,3472.8,3471.9,3.57105]
[1735143003057,0.8,3473.3,3472.1,0.6908]
[1735143003253,4.07542823,3474.0,3472.1,0.6908]
[1735143003254,0.8,3473.9,3473.1,0.6908]
[1735143003467,0.8,3473.9,3473.2,0.02879043]
[1735143003665,0.8,3473.9,3473.1,0.6908]
[1735143004066,0.8,3473.9,3473.1,1.047825]
[1735143004294,1.19689823,3474.0,3473.1,1.047825]
[1735143004295,1.19689823,3474.0,3473.4,2.879]
[1735143004593,2.87826,3474.4,3473.5,0.6908]
[1735143005694,4.07490823,3474.7,3473.6,2.90756556]
[1735143005879,4.07490823,3474.7,3473.6,3.45599256]
[1735143006087,0.8,3474.8,3473.6,0.57721256]
[1735143006295,2.87768,3475.1,3473.8,0.6908]
[1735143006468,2.87768,3475.1,3474.1,0.6908]
[1735143006670,0.8,3475.3,3474.2,2.87834]
[1735143006671,3.67745,3475.3,3474.2,2.87834]
[1735143006888,2.87738,3475.4,3474.3,2.87827]
[1735143007214,2.87738,3475.4,3474.3,0.356907]
[1735143007418,2.87742,3475.4,3474.3,0.356907]
[1735143008018,2.87779,3474.9,3474.1,0.6908]
[1735143008198,0.8186,3474.9,3473.7,0.5907905]
[1735143008396,0.8186,3474.9,3473.3,0.6908]
[1735143008722,2.87819,3474.4,3473.6,1.20504172]
[1735143008878,0.8186,3474.0,3473.6,1.20504172]
[1735143009079,0.55,3473.9,3473.6,1.20504172]
[1735143009733,0.55,3473.9,3473.0,0.6908]
[1735143010127,0.55,3473.9,3473.3,0.58162426]
[1735143010830,3.4286,3473.9,3473.3,0.58162426]
[1735143011029,3.4286,3473.9,3473.0,0.6908]
[1735143011030,0.55,3473.9,3472.6,1.89584172]
[1735143011337,0.55,3473.4,3472.6,1.89584172]
[1735143011994,0.55,3473.7,3472.7,0.02879268]
[1735143012233,0.55,3473.7,3472.8,0.49246344]
[1735143012396,0.55,3473.7,3472.8,3.49246344]
[1735143012796,0.55,3473.7,3472.8,1.06751567]
[1735143012797,3.4288,3473.7,3472.8,1.06751567]
[1735143013017,3.4288,3473.7,3472.8,0.57505223]
[1735143013420,3.42862,3473.9,3472.8,0.60384459]
[1735143013732,0.55,3473.9,3472.8,0.57505223]
[1735143013897,0.55,3473.9,3472.8,3.57505223]
[1735143013898,3.42862,3473.9,3472.8,3.57505223]
[1735143014097,3.42862,3473.9,3472.9,1.01453922]
[1735143014098,0.55,3473.9,3472.9,1.01453922]
[1735143014301,0.55,3473.7,3472.8,0.57505223]
[1735143015847,0.55,3473.9,3472.8,0.57505223]
[1735143016160,0.7962,3474.4,3473.4,2.87899]
[1735143016646,0.7962,3474.4,3473.5,2.87893]
[1735143016946,0.7962,3474.4,3473.6,0.6908]
[1735143017438,0.55,3474.3,3473.6,0.6908]
[1735143019735,0.55,3474.3,3473.5,0.58068607]
[1735143020971,0.55,3474.6,3473.6,2.90760405]
[1735143021472,3.42803,3474.6,3473.6,2.87882]
[1735143021627,3.42803,3474.6,3473.7,0.02878416]
[1735143023571,2.87813,3474.5,3473.7,0.02878416]
[1735143023773,0.7957,3474.5,3473.5,0.58068607]
[1735143023949,0.55,3474.2,3473.5,0.58068607]
[1735143024938,0.55,3474.0,3473.5,0.58068607]
[1735143025863,3.42852,3474.0,3473.5,0.58068607]
[1735143026050,0.55,3473.8,3473.5,0.58068607]
[1735143026255,3.4287,3473.8,3473.1,1.20504172]
[1735143027084,0.55,3473.8,3473.1,1.20504172]
[1735143027252,0.55,3473.8,3473.2,0.36987748]
[1735143028239,0.55,3473.8,3473.0,0.6908]
[1735143029243,0.55,3473.8,3473.3,0.56373672]
[1735143033185,0.55,3473.9,3473.3,0.56373672]
[1735143033961,0.8159,3474.5,3473.4,3.56981]
[1735143034960,0.8159,3474.5,3473.5,2.8789]
[1735143035161,0.8159,3474.5,3473.6,0.41334367]
[1735143035162,3.69401,3474.5,3473.6,0.41334367]
[1735143035685,0.55,3474.4,3473.6,0.41334367]
[1735143036447,3.4282,3474.4,3473.6,0.41334367]
[1735143037285,0.8159,3474.8,3473.7,0.6908]
[1735143037475,2.87818,3474.5,3473.7,0.6908]
[1735143037880,2.87822,3474.4,3473.7,0.6908]
[1735143038457,0.55,3474.3,3473.7,0.6908]
[1735143039785,2.87811,3474.5,3473.4,0.6908]
[1735143040087,0.55,3474.1,3473.4,0.6908]
[1735143040451,0.55,3474.3,3473.4,0.6908]
[1735143040652,0.55,3474.3,3473.5,0.41336267]
[1735143041089,0.55,3474.2,3473.5,0.41336267]
[1735143041788,0.55,3474.5,3473.5,0.44214903]
[1735143041976,0.55,3474.5,3473.5,3.29229267]
[1735143042163,3.42813,3474.5,3473.5,3.29229267]
[1735143042367,3.42813,3474.5,3473.6,0.45468294]
[1735143042963,0.55,3474.6,3473.7,0.6908]
[1735143043180,0.55,3474.6,3473.7,3.56957]
[1735143043594,0.55,3474.5,3473.7,0.6908]
[1735143043961,3.42788,3474.8,3473.7,0.6908]
[1735143044159,3.42788,3474.8,3473.9,0.6908]
[1735143044421,3.42788,3474.8,3474.0,0.356948]
[1735143045221,0.7921,3475.2,3474.1,3.56923]
[1735143045419,1.19689823,3475.4,3474.3,3.569]
[1735143045621,1.19689823,3475.4,3474.5,0.6908]
[1735143045788,0.7921,3475.5,3474.5,0.6908]
[1735143045989,2.87739,3475.4,3474.6,0.35977775]
[1735143046191,0.7921,3475.5,3474.6,0.35977775]